bitfinex/quotes_SOLUSD_20250527
["timestamp","ask_amount","ask_price","bid_price","bid_amount"]
[1748361235764,21.22339305,178.51,178.46,21.22339305]
[1748361235927,3.92156861,178.5,178.46,21.22339305]
[1748361236661,3.92156861,178.5,178.45,26.0]
[1748361236662,30.74720255,178.5,178.45,21.22339305]
[1748361237741,21.22339305,178.49,178.44,125.77849305]
[1748361238055,3.92200806,178.48,178.44,125.77849305]
[1748361238240,25.14540111,178.48,178.44,15.7551]
[1748361238442,21.22339305,178.47,178.44,9.14]
[1748361239059,21.22339305,178.47,178.42,21.22339305]
[1748361239666,21.22339305,178.46,178.41,21.22339305]
[1748361239846,21.22339305,178.45,178.4,96.7423]
[1748361240047,1.12088774,178.43,178.4,6.2792]
[1748361240670,1.12088774,178.43,178.4,27.50259305]
[1748361241669,1.12088774,178.43,178.4,6.2792]
[1748361242163,25.14642532,178.44,178.39,30.36339305]
[1748361242369,21.22339305,178.43,178.39,9.14]
[1748361242540,21.22339305,178.42,178.39,9.14]
[1748361242741,21.22339305,178.42,178.37,47.22339305]
[1748361243246,21.22339305,178.39,178.34,30.36339305]
[1748361244251,3.92420674,178.38,178.34,30.36339305]
[1748361244453,3.92420674,178.38,178.35,21.22339305]
[1748361245068,1.12120192,178.38,178.37,21.22339305]
[1748361246053,1.12120192,178.38,178.34,26.0]
[1748361246054,3.92420674,178.38,178.34,26.0]
[1748361246257,21.22339305,178.37,178.32,22.80879305]
[1748361246461,25.14759979,178.38,178.33,21.22339305]
[1748361246643,3.92420674,178.38,178.34,21.22339305]
[1748361247446,3.92420674,178.38,178.33,21.22339305]
[1748361247848,3.92420674,178.38,178.34,47.22339305]
[1748361248961,3.92420674,178.38,178.34,26.0]
[1748361249356,3.92420674,178.38,178.37,21.22339305]
[1748361249772,1.12120192,178.38,178.37,21.22339305]
[1748361249983,1.12107623,178.4,178.39,26.0]
[1748361250276,24.02554236,178.44,178.39,47.22339305]
[1748361251071,2.80214931,178.44,178.4,21.22339305]
[1748361251255,2.80214931,178.44,178.39,47.22339305]
[1748361251760,24.02554236,178.44,178.39,26.0]
[1748361252352,25.14636728,178.44,178.39,26.0]
[1748361252957,25.14636728,178.44,178.39,47.22339305]
[1748361253552,25.14636728,178.44,178.39,26.0]
[1748361253553,21.22339305,178.43,178.39,26.0]
[1748361253981,21.22339305,178.42,178.37,63.01689305]
[1748361254177,21.22339305,178.42,178.37,53.87689305]
[1748361254369,21.22339305,178.4,178.35,21.22339305]
[1748361254573,21.22339305,178.4,178.34,30.36339305]
[1748361254876,21.22339305,178.4,178.34,56.36339305]
[1748361255581,21.22339305,178.4,178.34,30.36339305]
[1748361255791,3.92398676,178.39,178.34,56.36339305]
[1748361256471,3.92398676,178.39,178.36,21.22339305]
[1748361256673,3.92398676,178.39,178.37,21.22339305]
[1748361257283,3.92398676,178.39,178.36,21.22339305]
[1748361257783,2.80284769,178.39,178.36,21.22339305]
[1748361258095,2.80284769,178.39,178.34,35.14]
[1748361258266,24.02624074,178.39,178.34,56.36339305]
[1748361258907,24.02624074,178.39,178.35,21.22339305]
[1748361258908,2.80284769,178.39,178.35,21.22339305]
[1748361259061,2.80284769,178.39,178.38,21.22339305]
[1748361260078,3.92332697,178.42,178.38,21.22339305]
[1748361260273,3.92332697,178.42,178.37,47.22339305]
[1748361260593,21.22339305,178.41,178.37,26.0]
[1748361260782,21.22339305,178.41,178.36,21.22339305]
[1748361261289,30.75147285,178.42,178.37,21.22339305]
[1748361267689,30.75147285,178.42,178.37,26.0]
[1748361267889,30.75147285,178.42,178.37,47.22339305]
[1748361268265,21.22339305,178.41,178.37,26.0]
[1748361268674,3.92376681,178.4,178.36,21.22339305]
[1748361269773,3.92376681,178.4,178.38,21.22339305]
[1748361270701,2.80269058,178.4,178.38,21.22339305]
[1748361272087,1.12095056,178.42,178.39,21.22339305]
[1748361272287,1.12095056,178.42,178.41,21.22339305]
[1748361272898,2.80232765,178.43,178.41,21.22339305]
[1748361273199,2.80232765,178.43,178.42,21.22339305]
[1748361273398,2.80232765,178.43,178.38,149.5]
[1748361273607,2.80232765,178.43,178.42,21.22339305]
[1748361273786,2.80232765,178.43,178.38,149.5]
[1748361274097,2.80232765,178.43,178.41,21.22339305]
[1748361274396,2.80232765,178.43,178.42,21.22339305]
[1748361274917,2.80232765,178.43,178.38,149.5]
[1748361275082,3.9224476,178.46,178.42,21.22339305]
[1748361277308,3.9224476,178.46,178.41,21.22339305]
[1748361277694,21.22339305,178.45,178.4,21.22339305]
[1748361278082,21.22339305,178.44,178.38,114.8]
[1748361278283,9.52594418,178.46,178.38,136.02339305]
[1748361278284,21.22339305,178.43,178.38,136.02339305]
[1748361278805,21.22339305,178.42,178.37,21.22339305]
[1748361279099,21.22339305,178.41,178.36,47.22339305]
[1748361279356,3.92376681,178.4,178.36,47.22339305]
[1748361280103,3.92376681,178.4,178.36,26.0]
[1748361280291,25.14715986,178.4,178.36,26.0]
[1748361280698,3.92376681,178.4,178.36,47.22339305]
[1748361281008,3.92376681,178.4,178.36,26.0]
[1748361281216,21.22339305,178.37,178.33,6.3879]
[1748361281512,21.22339305,178.37,178.32,22.80879305]
[1748361281809,21.22339305,178.37,178.32,21.22339305]
[1748361282104,21.22339305,178.36,178.31,21.22339305]
[1748361282305,15.13452913,178.4,178.3,21.22339305]
[1748361282306,21.22339305,178.35,178.3,21.22339305]
[1748361282503,21.22339305,178.34,178.29,36.38849305]
[1748361282702,21.22339305,178.33,178.29,15.1651]
[1748361283505,21.22339305,178.34,178.29,36.38849305]
[1748361283818,26.83058665,178.35,178.29,36.38849305]
[1748361284021,5.6071936,178.35,178.31,21.22339305]
[1748361285103,3.92442674,178.37,178.32,21.22339305]
[1748361285309,3.92442674,178.37,178.33,21.22339305]
[1748361285699,2.80316196,178.37,178.32,26.0]
[1748361285900,2.80316196,178.37,178.33,21.22339305]
[1748361286856,3.92442674,178.37,178.33,21.22339305]
[1748361289217,2.80316196,178.37,178.33,21.22339305]
[1748361290205,2.80316196,178.37,178.34,21.22339305]
[1748361291324,9.52914797,178.4,178.34,21.22339305]
[1748361291528,9.52914797,178.4,178.39,21.22339305]
[1748361292620,9.52914797,178.4,178.38,21.22339305]
[1748361293516,8.40807174,178.4,178.38,21.22339305]
[1748361294109,8.40807174,178.4,178.34,114.8]
[1748361294110,8.40807174,178.4,178.39,21.22339305]
[1748361294406,2.80269058,178.4,178.39,21.22339305]
[1748361294617,2.80269058,178.4,178.36,6.4056]
[1748361294903,2.80269058,178.4,178.39,21.22339305]
[1748361295625,3.92288723,178.44,178.39,21.22339305]
[1748361298228,3.92288723,178.44,178.36,95.2056]
[1748361298444,21.22339305,178.43,178.38,21.22339305]
[1748361299020,30.75040491,178.44,178.39,21.22339305]
[1748361299219,21.22339305,178.43,178.38,21.22339305]
[1748361299945,30.75040491,178.44,178.39,21.22339305]
[1748361300517,9.52701186,178.44,178.4,21.22339305]
[1748361301931,3.92288723,178.44,178.41,21.22339305]
[1748361302323,2.80206231,178.44,178.41,21.22339305]
[1748361302921,2.80206231,178.44,178.42,21.22339305]
[1748361304131,2.80206231,178.44,178.37,26.0]
[1748361304132,2.80206231,178.44,178.43,21.22339305]
[1748361304632,3.92222782,178.47,178.43,21.22339305]
[1748361305616,30.74880347,178.47,178.42,21.22339305]
[1748361307628,21.22339305,178.46,178.41,21.22339305]
[1748361308043,30.74880347,178.47,178.41,21.22339305]
[1748361308420,30.74880347,178.47,178.42,21.22339305]
[1748361311337,8.4047739,178.47,178.42,21.22339305]
[1748361311534,29.62816695,178.47,178.42,21.22339305]
[1748361312950,8.4047739,178.47,178.43,21.22339305]
[1748361313128,2.8015913,178.47,178.44,21.22339305]
[1748361316436,2.8015913,178.47,178.41,9.1]
[1748361316628,2.8015913,178.47,178.43,21.22339305]
[1748361317050,21.22339305,178.46,178.41,30.32339305]
[1748361317346,21.22339305,178.45,178.41,9.1]
[1748361318160,1.12082492,178.44,178.41,9.1]
[1748361319340,3.92288723,178.44,178.4,21.22339305]
[1748361320758,9.52701186,178.44,178.38,35.1]
[1748361320945,21.22339305,178.42,178.38,9.1]
[1748361321255,3.92398676,178.39,178.35,21.22339305]
[1748361321660,3.92398676,178.39,178.37,21.22339305]
[1748361323555,1.12113907,178.39,178.38,21.22339305]
[1748361323755,1.12113907,178.39,178.38,29.35929305]
[1748361323962,2.80247701,178.42,178.38,85.2426861]
[1748361323963,1.12107476,178.41,178.38,85.2426861]
[1748361324148,1.12107476,178.41,178.4,21.22339305]
[1748361325437,3.9224476,178.46,178.4,21.22339305]
[1748361325756,3.9224476,178.46,178.43,21.22339305]
[1748361325959,3.9224476,178.46,178.42,21.22339305]
[1748361326351,29.9224476,178.46,178.43,21.22339305]
[1748361327235,29.9224476,178.46,178.45,21.22339305]
[1748361327742,29.9224476,178.46,178.44,21.22339305]
[1748361328262,29.9224476,178.46,178.43,21.22339305]
[1748361328452,56.74933723,178.46,178.41,21.22339305]
[1748361329356,35.52594418,178.46,178.41,21.22339305]
[1748361330867,35.52594418,178.46,178.42,21.22339305]
[1748361333848,35.52594418,178.46,178.39,9.1]
[1748361334066,35.52594418,178.46,178.42,21.22339305]
[1748361334266,35.52594418,178.46,178.39,9.1]
[1748361334447,56.74933723,178.46,178.42,21.22339305]
[1748361334937,56.74933723,178.46,178.38,51.8959]
[1748361335143,56.74933723,178.46,178.34,44.64964886]
[1748361335144,21.22339305,178.4,178.34,7.7051]
[1748361335468,21.22339305,178.4,178.3,93.28055959]
[1748361335469,21.22339305,178.37,178.33,9.1]
[1748361335837,21.22339305,178.38,178.33,30.32339305]
[1748361336445,3.92442674,178.37,178.33,30.32339305]
[1748361337260,3.92442674,178.37,178.34,21.22339305]
[1748361337642,3.92442674,178.37,178.36,21.22339305]
[1748361338668,3.92354688,178.41,178.36,21.22339305]
[1748361338848,25.14693993,178.41,178.36,21.22339305]
[1748361339420,25.14693993,178.41,178.33,9.1]
[1748361339538,25.14693993,178.41,178.36,21.22339305]
[1748361340174,3.92354688,178.41,178.37,21.22339305]
[1748361340357,3.92354688,178.41,178.36,21.22339305]
[1748361341045,30.75200691,178.41,178.36,21.22339305]
[1748361342679,9.52861386,178.41,178.36,21.22339305]
[1748361343247,3.92354688,178.41,178.38,21.22339305]
[1748361344447,3.92354688,178.41,178.37,21.22339305]
[1748361345162,3.92354688,178.41,178.35,123.46]
[1748361345370,3.92354688,178.41,178.37,21.22339305]
[1748361345876,25.14693993,178.41,178.35,144.68339305]
[1748361346249,25.14693993,178.41,178.36,21.22339305]
[1748361348402,3.92354688,178.41,178.34,34.66]
[1748361348696,3.92354688,178.41,178.37,21.22339305]
[1748361349689,25.14693993,178.41,178.36,21.22339305]
[1748361350674,3.92354688,178.41,178.37,21.22339305]
[1748361352795,30.75200691,178.41,178.36,21.22339305]
[1748361353185,24.11200691,178.41,178.36,21.22339305]
[1748361354397,24.11200691,178.41,178.37,21.22339305]
[1748361354398,9.61469423,178.41,178.37,21.22339305]
[1748361354780,9.61469423,178.41,178.36,21.22339305]
[1748361355104,30.83808728,178.41,178.36,21.22339305]
[1748361355871,9.61469423,178.41,178.37,21.22339305]
[1748361356299,4.00962725,178.41,178.37,21.22339305]
[1748361357890,4.00962725,178.41,178.35,1.6413]
[1748361358092,4.00962725,178.41,178.37,21.22339305]
[1748361360683,4.00962725,178.41,178.35,90.4413]
[1748361360684,1.12101339,178.41,178.4,21.22339305]
[1748361360897,1.12101339,178.41,178.39,26.0]
[1748361361204,1.12101339,178.41,178.4,21.22339305]
[1748361361989,3.92222782,178.47,178.4,21.22339305]
[1748361362187,3.92222782,178.47,178.43,21.22339305]
[1748361362391,3.92222782,178.47,178.44,21.22339305]
[1748361363211,2.8015913,178.47,178.44,21.22339305]
[1748361364895,21.22339305,178.45,178.39,21.22339305]
[1748361365096,21.22339305,178.43,178.38,47.22339305]
[1748361365315,3.92332697,178.42,178.39,21.22339305]
[1748361365613,3.92332697,178.42,178.4,21.22339305]
[1748361366201,3.92332697,178.42,178.39,21.22339305]
[1748361366626,2.80237641,178.42,178.39,21.22339305]
[1748361367492,2.80237641,178.42,178.38,47.22339305]
[1748361368691,3.92332697,178.42,178.38,47.22339305]
[1748361369700,3.92332697,178.42,178.38,21.22339305]
[1748361370823,2.80237641,178.42,178.38,21.22339305]
[1748361371229,2.80237641,178.42,178.37,9.1]
[1748361371425,24.02576946,178.42,178.37,30.32339305]
[1748361371721,2.80237641,178.42,178.38,21.22339305]
[1748361372234,2.80237641,178.42,178.37,30.32339305]
[1748361373201,3.92332697,178.42,178.37,30.32339305]
[1748361373404,25.14672002,178.42,178.37,9.1]
[1748361373729,21.22339305,178.41,178.37,9.1]
[1748361374105,25.14672002,178.42,178.37,9.1]
[1748361374308,3.92332697,178.42,178.37,30.32339305]
[1748361374534,3.92332697,178.42,178.37,9.1]
[1748361374714,3.92332697,178.42,178.38,21.22339305]
[1748361374921,3.92332697,178.42,178.37,30.32339305]
[1748361376445,3.92332697,178.42,178.38,21.22339305]
[1748361377044,3.92332697,178.42,178.39,21.22339305]
[1748361377707,26.82765618,178.44,178.39,21.22339305]
[1748361377910,5.60426313,178.44,178.39,21.22339305]
[1748361378518,5.60426313,178.44,178.4,21.22339305]
[1748361378835,3.9226674,178.45,178.4,21.22339305]
[1748361379031,29.9226674,178.45,178.4,21.22339305]
[1748361379724,51.14606045,178.45,178.4,21.22339305]
[1748361381841,56.74987104,178.45,178.37,97.9]
[1748361382042,35.52647799,178.45,178.38,21.22339305]
[1748361382257,21.22339305,178.44,178.39,21.22339305]
[1748361382460,56.74987104,178.45,178.39,21.22339305]
[1748361383246,56.74987104,178.45,178.37,43.74]
[1748361383453,21.22339305,178.43,178.38,21.22339305]
[1748361383641,21.22339305,178.44,178.39,21.22339305]
[1748361384557,3.92310709,178.43,178.39,21.22339305]
[1748361386266,3.92310709,178.43,178.38,21.22339305]
[1748361387248,3.92310709,178.43,178.39,21.22339305]
[1748361389163,3.92310709,178.43,178.37,43.74]
[1748361389164,30.75093885,178.43,178.37,30.32339305]
[1748361389548,30.75093885,178.43,178.37,9.1]
[1748361389761,30.75093885,178.43,178.37,30.32339305]
[1748361391248,21.22339305,178.41,178.37,9.1]
[1748361392171,21.22339305,178.42,178.37,9.1]
[1748361392742,25.14693993,178.41,178.37,9.1]
[1748361395155,3.92354688,178.41,178.37,30.32339305]
[1748361395570,3.92354688,178.41,178.39,21.22339305]
[1748361396371,3.92354688,178.41,178.37,30.32339305]
[1748361396676,21.22339305,178.4,178.34,21.22339305]
[1748361396869,3.92398676,178.39,178.34,21.22339305]
[1748361397073,3.92398676,178.39,178.35,21.22339305]
[1748361397396,3.92398676,178.39,178.17,6.2889]
[1748361397397,26.0,178.32,178.17,6.2889]
[1748361397691,26.0,178.32,178.24,21.22339305]
[1748361397692,21.22339305,178.3,178.24,21.22339305]
[1748361397854,21.22339305,178.3,178.18,34.62]
[1748361397855,21.22339305,178.29,178.23,21.22339305]
[1748361398053,21.22339305,178.28,178.22,21.22339305]
[1748361398349,21.22339305,178.3,178.25,21.22339305]
[1748361399156,3.92618766,178.29,178.25,21.22339305]
[1748361399356,3.92618766,178.29,178.24,21.22339305]
[1748361400177,3.92618766,178.29,178.25,21.22339305]
[1748361400976,1.1217679,178.29,178.28,21.22339305]
[1748361401274,2.80404571,178.32,178.28,21.22339305]
[1748361402561,3.92562489,178.32,178.28,21.22339305]
[1748361405064,25.14901794,178.32,178.27,21.22339305]
[1748361405461,21.22339305,178.3,178.25,6.187]
[1748361405661,25.14901794,178.32,178.27,21.22339305]
[1748361406560,21.22339305,178.31,178.26,21.22339305]
[1748361406781,21.22339305,178.31,178.25,6.187]
[1748361407083,3.92596746,178.3,178.26,21.22339305]
[1748361407455,3.92596746,178.3,178.25,6.187]
[1748361407758,3.92596746,178.3,178.26,21.22339305]
[1748361409178,21.22339305,178.28,178.23,90.3924]
[1748361409365,21.22339305,178.28,178.23,146.25579305]
[1748361410481,21.22339305,178.27,178.22,47.22339305]
[1748361410682,21.22339305,178.26,178.21,125.13959305]
[1748361411184,21.22339305,178.27,178.22,21.22339305]
[1748361412183,21.22339305,178.26,178.21,103.9162]
[1748361412384,21.22339305,178.26,178.21,125.13959305]
[1748361413286,3.92706871,178.25,178.21,125.13959305]
[1748361414569,3.92706871,178.25,178.21,103.9162]
[1748361414779,3.92706871,178.25,178.21,36.33959305]
[1748361415686,3.92706871,178.25,178.21,9.08]
[1748361416292,3.92706871,178.25,178.21,30.30339305]
[1748361417294,3.92706871,178.25,178.22,21.22339305]
[1748361418394,3.92706871,178.25,178.21,9.08]
[1748361418687,25.15046176,178.25,178.21,9.08]
[1748361418987,3.92706871,178.25,178.21,30.30339305]
[1748361419295,3.92706871,178.25,178.22,21.22339305]
[1748361419587,2.80504908,178.25,178.22,21.22339305]
[1748361419984,2.80504908,178.25,178.24,21.22339305]
[1748361420188,2.80504908,178.25,178.23,21.22339305]
[1748361421299,2.80504908,178.25,178.23,47.22339305]
[1748361421973,1.12189375,178.27,178.24,21.22339305]
[1748361422174,1.12189375,178.27,178.25,21.22339305]
[1748361423779,2.80467996,178.28,178.25,21.22339305]
[1748361424907,2.80467996,178.28,178.24,55.86339305]
[1748361425770,3.92651078,178.28,178.24,55.86339305]
[1748361426375,3.92651078,178.28,178.24,34.64]
[1748361426587,3.92651078,178.28,178.24,144.66339305]
[1748361427103,3.92651078,178.28,178.26,47.22339305]
[1748361427878,2.80467996,178.28,178.26,47.22339305]
[1748361428993,21.22339305,178.32,178.26,47.22339305]
[1748361429182,21.22339305,178.32,178.27,21.22339305]
[1748361429583,21.22339305,178.33,178.28,21.22339305]
[1748361430377,21.22339305,178.33,178.29,26.0]
[1748361430808,9.53235391,178.34,178.29,26.0]
[1748361430978,26.83066006,178.34,178.29,47.22339305]
[1748361431185,21.22339305,178.35,178.29,47.22339305]
[1748361432275,21.22339305,178.35,178.3,21.22339305]
[1748361432475,21.22339305,178.35,178.29,170.66339305]
[1748361432676,21.22339305,178.34,178.29,170.66339305]
[1748361433099,3.92530701,178.33,178.29,170.66339305]
[1748361433299,21.22339305,178.31,178.29,114.8]
[1748361433504,21.22339305,178.31,178.29,26.0]
[1748361434994,1.12170499,178.3,178.29,26.0]
[1748361435616,1.12157918,178.32,178.31,26.0]
[1748361435820,1.12157918,178.32,178.31,136.02339305]
[1748361437212,2.80342476,178.36,178.31,136.02339305]
[1748361437415,26.82908843,178.39,178.34,47.22339305]
[1748361437620,3.92420674,178.38,178.34,136.02339305]
[1748361438486,25.14759979,178.38,178.34,114.8]
[1748361438817,21.22339305,178.37,178.34,114.8]
[1748361439592,22.3447207,178.36,178.34,114.8]
[1748361441318,1.12132765,178.36,178.34,114.8]
[1748361441502,1.12132765,178.36,178.34,26.0]
[1748361445602,1.12132765,178.36,178.34,47.22339305]
[1748361445801,1.12132765,178.36,178.34,26.0]
[1748361446903,1.12126478,178.37,178.34,26.0]
[1748361448296,21.22339305,178.37,178.34,26.0]
[1748361448594,21.22339305,178.35,178.27,116.52964886]
[1748361448803,21.22339305,178.31,178.27,9.08]
[1748361449008,21.22339305,178.29,178.27,9.08]
[1748361449216,1.5037,178.36,178.27,9.08]
[1748361449217,21.22339305,178.28,178.27,9.08]
[1748361449422,21.22339305,178.28,178.22,9.08]
[1748361449614,54.77334886,178.36,178.22,9.08]
[1748361449615,21.22339305,178.26,178.23,34.62]
[1748361449801,21.22339305,178.26,178.22,9.08]
[1748361450035,21.22339305,178.27,178.22,43.7]
[1748361450203,1.12195669,178.26,178.23,26.0]
[1748361450802,3.92684842,178.26,178.22,43.7]
[1748361451327,3.92684842,178.26,178.23,26.0]
[1748361452923,21.22339305,178.24,178.23,26.0]
[1748361453224,21.22339305,178.24,178.22,35.08]
[1748361453442,21.22339305,178.23,178.22,35.08]
[1748361454630,21.22339305,178.23,178.13,39.87304191]
[1748361454631,25.15090244,178.23,178.13,39.87304191]
[1748361454804,21.22339305,178.18,178.16,26.0]
[1748361455129,3.92750939,178.23,178.13,74.49304191]
[1748361455130,21.22339305,178.19,178.17,26.0]
[1748361455507,21.22339305,178.19,178.14,21.22339305]
[1748361455704,9.5382371,178.23,178.16,21.22339305]
[1748361455921,21.22339305,178.21,178.16,47.22339305]
[1748361456801,21.22339305,178.2,178.16,26.0]
[1748361457603,24.02921541,178.21,178.16,47.22339305]
[1748361458002,21.22339305,178.19,178.18,26.0]
[1748361458199,21.22339305,178.2,178.18,26.0]
[1748361458430,24.02921541,178.21,178.16,47.22339305]
[1748361458654,2.80582236,178.21,178.19,26.0]
[1748361459718,1.1222085,178.22,178.19,47.22339305]
[1748361460534,1.1222085,178.22,178.2,21.22339305]
[1748361461031,25.15071023,178.24,178.19,47.22339305]
[1748361462537,3.92731718,178.24,178.2,21.22339305]
[1748361463210,21.22339305,178.23,178.19,26.0]
[1748361463411,3.92731718,178.24,178.19,26.0]
[1748361463613,3.92731718,178.24,178.21,26.0]
[1748361463814,3.92731718,178.24,178.2,47.22339305]
[1748361464416,25.15071023,178.24,178.2,26.0]
[1748361465137,21.22339305,178.23,178.2,26.0]
[1748361465330,1.12233445,178.2,178.18,9.08]
[1748361465534,22.3457275,178.2,178.18,9.08]
[1748361465720,1.12233445,178.2,178.18,9.08]
[1748361466413,1.12233445,178.2,178.18,30.30339305]
[1748361467021,1.12233445,178.2,178.18,9.08]
[1748361467422,1.12227147,178.21,178.18,9.08]
[1748361468529,1.12227147,178.21,178.18,30.30339305]
[1748361469236,1.12227147,178.21,178.2,21.22339305]
[1748361469440,1.12208258,178.24,178.2,39.87304191]
[1748361469736,1.12208258,178.24,178.21,55.84339305]
[1748361470628,3.92714433,178.25,178.22,21.22339305]
[1748361472219,2.8051247,178.25,178.22,21.22339305]
[1748361474049,2.8051247,178.25,178.22,110.02339305]
[1748361474347,1.12195669,178.26,178.23,21.22339305]
[1748361475018,1.12195669,178.26,178.24,21.22339305]
[1748361475212,1.12195669,178.26,178.24,110.02339305]
[1748361475413,1.12195669,178.26,178.24,88.8]
[1748361476347,21.22339305,178.26,178.24,88.8]
[1748361476846,22.3452868,178.27,178.24,88.8]
[1748361477716,21.22339305,178.26,178.24,88.8]
[1748361478444,1.12201963,178.25,178.24,88.8]
[1748361479922,1.12201963,178.25,178.22,97.86]
[1748361480342,1.12201963,178.25,178.22,9.06]
[1748361480343,21.22339305,178.24,178.22,9.06]
[1748361480541,21.22339305,178.23,178.2,88.8]
[1748361480743,21.22339305,178.23,178.19,6.0314]
[1748361480744,21.22339305,178.21,178.19,34.62]
[1748361480957,21.22339305,178.22,178.19,34.62]
[1748361481452,21.22339305,178.23,178.19,34.62]
[1748361481948,1.1222085,178.22,178.19,34.62]
[1748361482151,1.1222085,178.22,178.21,21.22339305]
[1748361482627,1.12201963,178.25,178.21,21.22339305]
[1748361482821,1.12201963,178.25,178.24,21.22339305]
[1748361483062,1.12201963,178.25,178.24,55.84339305]
[1748361483842,24.02792977,178.29,178.24,55.84339305]
[1748361483843,3.92640788,178.28,178.24,55.84339305]
[1748361484030,25.14980093,178.28,178.24,34.62]
[1748361484450,21.22339305,178.25,178.22,6.3132]
[1748361484643,9.53556201,178.28,178.2,53.26964886]
[1748361484644,21.22339305,178.24,178.2,53.26964886]
[1748361484845,9.53556201,178.28,178.21,21.22339305]
[1748361485146,21.22339305,178.26,178.21,21.22339305]
[1748361486059,1.12201963,178.25,178.21,21.22339305]
[1748361486273,1.12201963,178.25,178.23,21.22339305]
[1748361486573,1.12201963,178.25,178.23,26.0]
[1748361486574,3.92706871,178.25,178.23,26.0]
[1748361487953,22.34547563,178.24,178.23,26.0]
[1748361488139,1.12208258,178.24,178.23,26.0]
[1748361489445,25.15068209,178.24,178.2,88.8]
[1748361489659,21.22339305,178.22,178.2,88.8]
[1748361489951,1.12227147,178.21,178.2,114.8]
[1748361490950,1.12227147,178.21,178.18,0.16]
[1748361490951,22.34566452,178.21,178.18,0.16]
[1748361491162,21.22339305,178.19,178.18,0.16]
[1748361491377,1.12227147,178.21,178.18,0.16]
[1748361492246,21.22339305,178.2,178.18,0.16]
[1748361492445,21.22339305,178.19,178.18,0.16]
[1748361492846,1.12227147,178.21,178.18,0.16]
[1748361493047,21.22339305,178.2,178.18,0.16]
[1748361493453,1.12227147,178.21,178.18,0.16]
[1748361493633,1.12227147,178.21,178.2,26.0]
[1748361494043,1.12214554,178.23,178.2,26.0]
[1748361494445,1.12214554,178.23,178.18,153.86339305]
[1748361494848,22.34553859,178.23,178.18,132.64]
[1748361495052,22.34553859,178.23,178.18,153.86339305]
[1748361495754,1.12214554,178.23,178.19,32.3131]
[1748361496371,1.12214554,178.23,178.19,53.53649305]
[1748361496538,1.12214554,178.23,178.2,21.22339305]
[1748361496742,1.12214554,178.23,178.19,53.53649305]
[1748361497468,22.34553859,178.23,178.19,32.3131]
[1748361497647,22.34553859,178.23,178.19,121.1131]
[1748361498467,22.3457275,178.2,178.19,114.8]
[1748361498667,1.12233445,178.2,178.19,114.8]
[1748361499679,1.1222085,178.22,178.19,114.8]
[1748361499856,1.1222085,178.22,178.19,145.08339305]
[1748361500043,1.1222085,178.22,178.19,123.86]
[1748361500778,1.1222085,178.22,178.19,158.48]
[1748361506694,21.22339305,178.25,178.19,179.70339305]
[1748361507866,1.12208258,178.24,178.19,179.70339305]
[1748361508072,1.12208258,178.24,178.2,18.64964886]
[1748361508262,1.12208258,178.24,178.2,39.87304191]
[1748361509159,3.92710488,178.25,178.2,39.87304191]
[1748361509480,21.22339305,178.24,178.19,158.48]
[1748361509978,21.22339305,178.23,178.19,158.48]
[1748361510166,21.22339305,178.23,178.19,123.86]
[1748361510368,21.22339305,178.23,178.22,26.0]
[1748361510778,3.92710488,178.25,178.22,26.0]
[1748361510779,21.22339305,178.24,178.22,26.0]
[1748361511364,1.12214554,178.23,178.22,26.0]
[1748361514090,1.12214554,178.23,178.18,18.80964886]
[1748361514091,25.15090244,178.23,178.18,0.16]
[1748361514385,21.22339305,178.19,178.18,0.16]
[1748361514677,21.22339305,178.19,178.06,6.1498]
[1748361514678,21.22339305,178.1,178.07,34.62]
[1748361515061,21.22339305,178.1,178.09,26.0]
[1748361515860,21.22339305,178.11,178.1,26.0]
[1748361516063,21.22339305,178.12,178.1,26.0]
[1748361516464,22.3462606,178.12,178.1,26.0]
[1748361517575,21.22339305,178.11,178.1,26.0]
[1748361518161,22.3462606,178.12,178.1,26.0]
[1748361518365,21.22339305,178.11,178.1,26.0]
[1748361520575,22.34629462,178.11,178.1,26.0]
[1748361520993,1.12290157,178.11,178.1,26.0]
[1748361521172,1.1227755,178.13,178.1,26.0]
[1748361521484,21.22339305,178.12,178.1,26.0]
[1748361521799,1.12258643,178.16,178.1,26.0]
[1748361522098,1.12227147,178.21,178.15,26.0]
[1748361522299,21.22339305,178.19,178.15,26.0]
[1748361522464,21.22339305,178.18,178.15,26.0]
[1748361522665,1.12252343,178.17,178.15,26.0]
[1748361522884,22.34591648,178.17,178.15,26.0]
[1748361523088,1.12252343,178.17,178.15,26.0]
[1748361524268,21.22339305,178.18,178.15,26.0]
[1748361524269,1.12239744,178.19,178.15,26.0]